bitfinex-derivatives/quotes_SOLF0:USTF0_20251211
["timestamp","ask_amount","ask_price","bid_price","bid_amount"]
[1765496449068,3.30842705,136.64,136.61,3.42464025]
[1765496449972,3.30842705,136.64,136.62,9.8364]
[1765496451173,3.30842705,136.64,136.63,6.5859]
[1765496451668,0.04842705,136.64,136.63,9.8359]
[1765496460475,3.27,136.69,136.66,9.8344]
[1765496460777,3.27,136.69,136.66,3.25]
[1765496461081,3.27,136.69,136.68,6.5835]
[1765496461280,3.27,136.69,136.66,3.25]
[1765496461482,3.29993863,136.69,136.66,3.30134683]
[1765496462868,3.29993863,136.69,136.67,6.584]
[1765496463193,0.02993863,136.69,136.67,3.25]
[1765496464976,0.02993863,136.69,136.68,9.8335]
[1765496467784,1.27353571,136.73,136.71,9.8319]
[1765496468783,1.27353571,136.73,136.71,9.88829063]
[1765496468987,3.27,136.75,136.72,9.8316]
[1765496471585,3.27,136.75,136.73,3.25]
[1765496471787,1.27320955,136.76,136.75,3.25]
[1765496472481,1.27320955,136.76,136.75,6.5801]
[1765496473385,69.66023116,136.78,136.75,9.8301]
[1765496473589,3.27,136.77,136.75,9.8301]
[1765496474382,69.66023116,136.78,136.75,9.8301]
[1765496474583,65.53,136.78,136.76,3.36]
[1765496475688,65.53,136.78,136.76,9.9396]
[1765496476090,3.32,136.77,136.74,3.41040962]
[1765496476288,62.26,136.78,136.76,3.36]
[1765496476677,8.72311472,136.79,136.76,3.36]
[1765496476881,4.59288356,136.79,136.76,3.36]
[1765496477092,4.59288356,136.79,136.77,6.5792]
[1765496477283,4.59288356,136.79,136.77,9.9392]
[1765496478288,3.32,136.82,136.79,3.36]
[1765496478498,3.32,136.82,136.79,3.40728512]
[1765496479997,3.32,136.82,136.79,9.98548512]
[1765496480395,3.17,136.8,136.79,0.04728512]
[1765496490599,3.17,136.81,136.79,0.04728512]
[1765496490796,5.80446693,136.81,136.79,0.04728512]
[1765496490998,3.17,136.8,136.79,0.04728512]
[1765496491493,3.17,136.8,136.79,6.62548512]
[1765496491695,3.17,136.8,136.79,0.04728512]
[1765496492894,5.80545936,136.8,136.79,0.04728512]
[1765496495201,3.17,136.8,136.79,6.62548512]
[1765496495501,3.17,136.81,136.79,3.41728512]
[1765496495692,2.63545936,136.82,136.8,3.37]
[1765496496508,62.24,136.83,136.82,9.9467]
[1765496496804,3.17,136.86,136.83,3.37]
[1765496497111,3.17,136.86,136.84,6.5758]
[1765496498207,3.17,136.86,136.83,6.6325298]
[1765496498420,5.80545936,136.85,136.83,6.6325298]
[1765496498615,3.17,136.84,136.83,0.0562298]
[1765496503114,9.7458,136.84,136.83,0.0562298]
[1765496503822,71.9458,136.84,136.83,0.0562298]
[1765496509020,71.9458,136.84,136.78,9.9485]
[1765496509328,5.99545936,136.8,136.78,3.37]
[1765496510127,6.05096761,136.8,136.78,3.42613626]
[1765496511523,3.36,136.79,136.78,0.05613626]
[1765496511724,3.36,136.78,136.72,3.29]
[1765496511924,5.99545936,136.75,136.72,3.29]
[1765496512727,6.04229838,136.75,136.72,3.33919416]
[1765496514421,5.99545936,136.73,136.72,0.04919416]
[1765496520529,0.04683902,136.75,136.72,3.33919416]
[1765496520733,2.63545936,136.73,136.72,0.04919416]
[1765496521028,5.99545936,136.73,136.72,0.04919416]
[1765496526529,3.36,136.72,136.66,6.75084964]
[1765496526732,3.36,136.71,136.66,3.29]
[1765496526929,3.36,136.7,136.66,3.29]
[1765496527524,5.99545936,136.71,136.66,3.29]
[1765496527824,0.05285827,136.69,136.68,3.29]
[1765496529044,0.05285827,136.69,136.68,9.8735]
[1765496529432,2.68831763,136.69,136.67,3.34489824]
[1765496529639,6.04831763,136.69,136.67,3.34489824]
[1765496532140,3.41285827,136.69,136.67,3.34489824]
[1765496535244,6.04831763,136.69,136.67,0.05489824]
[1765496535440,3.37,136.68,136.67,0.05489824]
[1765496537038,9.9535,136.68,136.67,0.05489824]
[1765496542750,3.32285827,136.69,136.67,3.36489824]
[1765496544548,0.05285827,136.69,136.67,9.94879824]
[1765496544749,0.05285827,136.69,136.68,3.31]
[1765496545341,0.05285827,136.69,136.68,9.8935]
[1765496548553,2.63545936,136.72,136.7,9.8924]
[1765496549351,2.68915848,136.72,136.7,9.8924]
[1765496550059,0.05369912,136.72,136.7,9.8924]
[1765496551154,0.05369912,136.72,136.71,9.892]
[1765496556659,3.27,136.76,136.74,3.31]
[1765496557658,3.32215175,136.76,136.74,3.35920707]
[1765496558164,7.39040068,136.75,136.74,0.04920707]
[1765496562659,3.27,136.75,136.74,0.04920707]
[1765496563970,3.32215175,136.76,136.74,3.35920707]
[1765496564370,3.32215175,136.76,136.74,0.04920707]
[1765496567464,3.32215175,136.76,136.74,6.62970707]
[1765496567665,3.32215175,136.76,136.74,3.35920707]
[1765496568373,3.32215175,136.76,136.75,6.5801]
[1765496568871,0.05215175,136.76,136.75,9.9501]
[1765496569469,3.41215175,136.76,136.75,6.5801]
[1765496570476,3.41215175,136.76,136.75,9.9501]
[1765496570776,3.41215175,136.76,136.75,6.5801]
[1765496570972,0.05215175,136.76,136.75,9.9501]
[1765496584382,3.41215175,136.76,136.74,0.04920707]
[1765496584588,3.41215175,136.76,136.74,3.41920707]
[1765496585883,3.41215175,136.76,136.74,9.99980707]
[1765496586186,3.41215175,136.76,136.75,3.37]
[1765496595090,3.41215175,136.76,136.74,6.62980707]
[1765496595296,3.41215175,136.76,136.74,9.70980707]
[1765496597802,3.41215175,136.76,136.74,3.12920707]
[1765496598801,7.42040068,136.75,136.74,0.04920707]
[1765496600002,3.3,136.74,136.71,3.17]
[1765496600190,7.42040068,136.73,136.71,3.17]
[1765496600588,7.42040068,136.73,136.71,9.7518]
[1765496600987,7.42040068,136.73,136.71,9.80794435]
[1765496602800,3.3,136.72,136.71,9.80794435]
[1765496603193,3.3,136.72,136.71,0.05614435]
[1765496607310,3.3,136.71,136.66,6.72098164]
[1765496607607,1.46,136.72,136.65,3.17]
[1765496607608,3.3,136.69,136.65,3.17]
[1765496607800,7.42040068,136.68,136.65,9.7549]
[1765496608198,7.42040068,136.68,136.66,3.17]
[1765496608395,7.46909585,136.68,136.66,3.22447923]
[1765496609403,3.3,136.67,136.66,0.05447923]
[1765496611310,7.46909585,136.68,136.66,3.22447923]
[1765496612420,0.04869517,136.68,136.66,3.22447923]
[1765496613916,0.04869517,136.68,136.67,3.17]
[1765496618129,0.04869517,136.68,136.67,9.754]
[1765496619722,64.8588644,136.72,136.69,3.17]
[1765496620526,68.1588644,136.72,136.69,3.17]
[1765496620731,68.21284418,136.72,136.69,3.22088737]
[1765496620931,68.21284418,136.72,136.7,3.17]
[1765496621642,62.27397978,136.72,136.7,9.7523]
[1765496621938,62.27397978,136.72,136.71,3.17]
[1765496622140,0.05397978,136.72,136.71,3.17]
[1765496624635,0.05397978,136.72,136.71,9.752]
[1765496634252,3.44397978,136.72,136.69,9.92348737]
[1765496634454,6.0276939,136.71,136.69,9.92348737]
[1765496635050,2.6376939,136.71,136.7,3.29]
[1765496639547,6.0276939,136.71,136.7,3.29]
[1765496640657,2.6376939,136.71,136.7,3.29]
[1765496641756,6.0276939,136.71,136.69,6.63348737]
[1765496641953,6.0276939,136.71,136.69,9.92348737]
[1765496642352,2.6376939,136.71,136.7,3.29]
[1765496643847,6.0276939,136.71,136.7,3.29]
[1765496648163,2.6376939,136.71,136.7,3.29]
[1765496649869,2.6376939,136.71,136.69,0.05088737]
[1765496649870,3.39,136.7,136.69,0.05088737]
[1765496651667,12.6098939,136.71,136.69,3.34088737]
[1765496652073,3.39,136.7,136.69,3.34088737]
[1765496654471,3.39,136.71,136.69,3.34088737]
[1765496655966,3.39,136.71,136.69,9.92388737]
[1765496656875,3.39,136.71,136.7,3.35]
[1765496657260,5.87167368,136.72,136.71,3.35]
[1765496657465,0.05397978,136.72,136.71,3.35]
[1765496658977,0.05397978,136.72,136.71,9.932]
[1765496660580,0.05397978,136.72,136.71,3.35]
[1765496661780,3.08,136.71,136.7,3.18]
[1765496662577,3.08,136.71,136.69,0.05088737]
[1765496663083,5.7176939,136.71,136.69,3.23088737]
[1765496664877,3.08,136.7,136.69,0.05088737]
[1765496673991,0.05397978,136.72,136.69,3.23088737]
[1765496674381,0.05397978,136.72,136.7,9.7621]
[1765496674581,0.05397978,136.72,136.71,3.18]
[1765496677295,0.05397978,136.72,136.71,9.762]
[1765496679896,3.08,136.77,136.73,3.18]
[1765496680088,3.08,136.77,136.69,102.44698737]
[1765496680089,3.08,136.77,136.72,3.18]
[1765496680290,3.08,136.76,136.72,3.18]
[1765496680891,3.08,136.74,136.73,0.04757467]
[1765496683101,10.75594103,136.75,136.68,9.7633]
[1765496683102,3.08,136.72,136.68,9.7633]
[1765496683605,3.08,136.72,136.69,3.18]
[1765496684104,3.12677489,136.72,136.69,3.23499422]
[1765496685405,0.04677489,136.72,136.7,3.18]
[1765496687004,0.04677489,136.72,136.71,3.18]
[1765496693316,0.04677489,136.72,136.71,9.762]
[1765496699513,3.10677489,136.72,136.7,3.31]
[1765496700310,3.10677489,136.72,136.69,6.63759422]
[1765496700511,3.10677489,136.72,136.69,9.94759422]
[1765496701020,3.10677489,136.72,136.7,3.31]
[1765496701211,0.04677489,136.72,136.7,3.31]
[1765496702621,3.10677489,136.72,136.7,3.31]
[1765496702813,0.04677489,136.72,136.7,3.31]
[1765496703015,3.10677489,136.72,136.7,3.31]
[1765496704124,3.10677489,136.72,136.69,3.36499422]
[1765496707820,3.10677489,136.72,136.69,0.05499422]
[1765496708024,3.06,136.7,136.69,0.05499422]
[1765496708415,9.6425,136.7,136.69,0.05499422]
[1765496708814,4.12120758,136.71,136.65,6.80005022]
[1765496708815,3.06,136.69,136.65,6.80005022]
[1765496709020,3.06,136.67,136.64,3.31]
[1765496709934,3.1090093,136.67,136.64,3.36194605]
[1765496710624,3.1090093,136.67,136.64,9.94724605]
[1765496710928,3.1090093,136.67,136.65,3.31]
[1765496710929,0.0490093,136.67,136.65,3.31]
[1765496711933,0.0490093,136.67,136.66,3.31]
[1765496713721,0.0490093,136.67,136.66,9.8944]
[1765496716428,76.10280758,136.72,136.68,3.35]
[1765496717036,69.52120758,136.72,136.69,3.35]
[1765496717339,69.57303462,136.72,136.69,3.40570905]
[1765496717531,3.16,136.71,136.69,3.40570905]
[1765496719238,62.29182704,136.72,136.7,3.08]
[1765496719428,65.50182704,136.72,136.7,3.08]
[1765496721037,65.50182704,136.72,136.7,9.6625]
[1765496722142,65.50182704,136.72,136.7,3.08]
[1765496723240,65.50182704,136.72,136.69,0.05570905]
[1765496723440,65.50182704,136.72,136.69,3.13570905]
[1765496723946,3.21,136.71,136.69,9.71840905]
[1765496728248,62.29182704,136.72,136.7,3.08]
[1765496728443,3.21,136.71,136.69,3.13570905]
[1765496729043,7.33120758,136.71,136.69,0.05570905]
[1765496729254,3.21,136.7,136.69,0.05570905]
[1765496734567,7.33120758,136.71,136.69,3.13570905]
[1765496734857,7.33120758,136.71,136.69,0.05570905]
[1765496737170,3.21,136.7,136.69,0.05570905]
[1765496738160,9.7925,136.7,136.69,0.05570905]
[1765496738865,12.43210705,136.7,136.69,0.05570905]
[1765496740169,5.84960705,136.7,136.69,0.05570905]
[1765496744665,2.63960705,136.71,136.69,3.13570905]
[1765496745166,65.50182704,136.72,136.69,3.13570905]
[1765496745167,68.14143409,136.72,136.69,3.13570905]
[1765496745671,0.05182704,136.72,136.69,3.13570905]
[1765496746063,0.05182704,136.72,136.71,3.08]
[1765496751381,62.24,136.75,136.74,3.17]
[1765496751670,65.63,136.75,136.72,3.17]
[1765496751872,2.63960705,136.74,136.72,3.17]
[1765496752463,2.63960705,136.74,136.72,3.21978396]
[1765496752464,2.69406309,136.74,136.72,3.21978396]
[1765496753078,6.08406309,136.74,136.72,3.21978396]
[1765496754577,3.39,136.73,136.72,0.04978396]
[1765496758182,3.39,136.73,136.67,6.80005022]
[1765496758373,6.02960705,136.68,136.66,9.97005022]
[1765496758576,6.02960705,136.68,136.66,3.17]
[1765496759281,6.0845457,136.68,136.66,3.22465902]
[1765496759883,6.0845457,136.68,136.66,9.80865902]
[1765496760087,0.05493865,136.68,136.67,3.17]
[1765496760383,0.05493865,136.68,136.66,9.80865902]
[1765496760887,0.05493865,136.68,136.67,9.754]
[1765496762890,3.44493865,136.68,136.66,0.05465902]
[1765496763081,2.63960705,136.67,136.66,3.22465902]
[1765496763583,3.39,136.7,136.67,3.17]
[1765496763774,2.63960705,136.69,136.67,3.17]
[1765496764580,2.69344445,136.69,136.67,3.17]
[1765496765090,2.69344445,136.69,136.68,3.17]
[1765496766081,6.08344445,136.69,136.66,3.22465902]
[1765496767178,6.08344445,136.69,136.66,9.80905902]
[1765496767492,6.08344445,136.69,136.67,3.17]
[1765496767783,2.69318373,136.69,136.67,3.17]
[1765496768789,6.08318373,136.69,136.67,3.17]
[1765496769684,2.69318373,136.69,136.67,3.17]
[1765496770186,2.69318373,136.69,136.68,3.17]
[1765496770390,2.69318373,136.69,136.67,9.7538]
[1765496770885,6.08318373,136.69,136.67,9.7538]
[1765496771090,3.39,136.68,136.66,3.22465902]
[1765496771284,2.63934633,136.67,136.66,3.22465902]
[1765496771788,6.02934633,136.67,136.66,0.05465902]
[1765496772376,2.63934633,136.67,136.66,3.22465902]
[1765496773589,2.63934633,136.67,136.66,0.05465902]
[1765496774290,3.4438374,136.69,136.66,0.05465902]
[1765496774490,2.63934633,136.67,136.66,0.05465902]
[1765496775790,5.99934633,136.67,136.66,0.05465902]
[1765496775990,3.36,136.67,136.66,0.05465902]
[1765496776191,5.99934633,136.67,136.66,0.05465902]
[1765496783091,2.63934633,136.67,136.66,3.30465902]
[1765496783798,2.63934633,136.67,136.66,0.05465902]
[1765496783799,5.98934633,136.67,136.66,0.05465902]
[1765496786804,5.98934633,136.67,136.62,6.5859]
[1765496787004,2.63934633,136.63,136.62,6.5859]
[1765496787501,5.98934633,136.63,136.61,3.25]
[1765496787708,5.98934633,136.63,136.58,3.25]
[1765496787709,3.35,136.62,136.58,3.25]
[1765496787999,102.4309,136.66,136.59,0.04973803]
[1765496788000,5.98934633,136.6,136.59,0.04973803]
[1765496790002,3.35,136.59,136.55,3.25]
[1765496790299,5.98934633,136.62,136.55,3.25]
[1765496790703,5.98934633,136.62,136.59,3.25]
[1765496790891,6.04507928,136.62,136.59,3.29868887]
[1765496791400,3.35,136.61,136.59,3.29868887]
[1765496791597,2.69507928,136.62,136.59,3.29868887]
[1765496792106,6.04507928,136.62,136.59,3.29868887]
[1765496792298,3.35,136.61,136.59,3.29868887]
[1765496792810,6.04507928,136.62,136.59,3.29868887]
[1765496793803,3.35,136.61,136.59,3.29868887]
[1765496797203,0.05573295,136.62,136.59,3.29868887]
[1765496798207,0.05573295,136.62,136.59,9.88648887]
[1765496798506,0.05573295,136.62,136.6,3.25]
[1765496799504,0.05573295,136.62,136.61,3.25]
[1765496800400,0.05573295,136.62,136.6,3.25]
[1765496800605,3.40573295,136.62,136.6,3.25]
[1765496803407,0.05573295,136.62,136.6,3.25]
[1765496803810,0.05573295,136.62,136.6,9.8373]
[1765496804013,0.05573295,136.62,136.61,3.25]
[1765496804899,0.05573295,136.62,136.61,9.8369]
[1765496810317,0.05573295,136.62,136.61,9.9069]
[1765496810512,3.37,136.66,136.64,9.9053]
[1765496810712,7.4978651,136.69,136.64,3.32]
[1765496811103,3.37,136.68,136.64,3.32]
[1765496811503,0.054851,136.67,136.65,3.36758081]
[1765496812911,0.054851,136.67,136.65,9.95248081]
[1765496813613,0.054851,136.67,136.66,3.32]
[1765496816116,3.424851,136.67,136.65,9.95248081]
[1765496816909,3.424851,136.67,136.65,6.63248081]
[1765496818026,7.5527161,136.67,136.65,0.04758081]
[1765496818216,7.5527161,136.67,136.6,3.32]
[1765496818217,7.4978651,136.64,136.6,3.32]
[1765496818517,3.37,136.63,136.6,3.32]
[1765496818711,7.4978651,136.66,136.6,3.32]
[1765496818918,3.37,136.65,136.62,9.9061]
[1765496819120,3.42206058,136.65,136.62,9.95667627]
[1765496819312,7.4978651,136.64,136.62,6.63667627]
[1765496819514,3.37,136.63,136.62,0.05057627]
[1765496821417,3.42206058,136.65,136.62,3.37057627]
[1765496821616,0.05206058,136.65,136.62,3.37057627]
[1765496822016,3.42206058,136.65,136.62,3.37057627]
[1765496823520,0.05206058,136.65,136.62,9.95677627]
[1765496823919,0.05206058,136.65,136.63,3.32]
[1765496827320,3.42206058,136.65,136.63,3.32]
[1765496828327,0.05206058,136.65,136.64,3.32]
[1765496835225,0.05206058,136.65,136.62,0.05057627]
[1765496835226,3.37,136.69,136.66,3.08]
[1765496836027,3.32,136.7,136.66,3.08]
[1765496836224,0.05639243,136.69,136.67,3.13000205]
[1765496836634,3.37639243,136.69,136.67,3.13000205]
[1765496837339,0.05639243,136.69,136.67,3.13000205]
[1765496837835,3.37639243,136.69,136.67,3.13000205]
[1765496842039,3.37639243,136.69,136.67,0.05000205]
[1765496842245,7.50425753,136.69,136.67,0.05000205]
[1765496842432,3.33,136.68,136.67,0.05000205]
[1765496859549,3.33,136.67,136.63,6.80005022]
[1765496859755,3.33,136.64,136.61,3.38]
[1765496860750,5.9719214,136.63,136.61,3.42796482]
[1765496861352,3.33,136.62,136.61,0.04796482]
[1765496862050,2.6419214,136.63,136.61,3.42796482]
[1765496862253,5.9719214,136.63,136.61,3.42796482]
[1765496862552,3.33,136.63,136.61,3.42796482]
[1765496869143,2.6419214,136.62,136.61,3.42796482]
[1765496869546,5.8919214,136.62,136.61,0.04796482]
[1765496870952,3.25,136.61,136.54,9.92005022]
[1765496871162,3.25,136.61,136.51,181.04532933]
[1765496871163,5.8919214,136.57,136.55,9.7096]
[1765496871458,5.8919214,136.57,136.55,3.12]
[1765496871852,5.94798922,136.57,136.55,3.17446232]
[1765496872358,2.69798922,136.57,136.55,3.17446232]
[1765496873853,5.94798922,136.57,136.55,3.17446232]
[1765496878564,3.30606782,136.57,136.55,3.17446232]
[1765496878759,5.94798922,136.57,136.55,3.17446232]
[1765496879864,0.05606782,136.57,136.56,3.12]
[1765496880975,0.05606782,136.57,136.56,9.7093]
[1765496886692,2.6419214,136.6,136.58,3.12]
[1765496886970,3.25,136.62,136.58,3.12]
[1765496887170,5.8919214,136.59,136.55,3.12]
[1765496887566,5.8919214,136.59,136.56,9.709]
[1765496887769,0.04649535,136.58,136.56,9.76280239]
[1765496888473,3.29649535,136.58,136.56,9.76280239]
[1765496888670,3.29649535,136.58,136.56,3.17380239]
[1765496890076,3.29649535,136.58,136.56,0.05380239]
[1765496890286,2.6419214,136.57,136.56,0.05380239]
[1765496890471,5.8919214,136.57,136.56,0.05380239]
[1765496890669,5.8919214,136.57,136.51,3.12]
[1765496890670,3.25,136.56,136.51,3.12]
[1765496890872,5.8919214,136.53,136.51,3.12]
[1765496891667,5.94459421,136.53,136.51,3.16854958]
[1765496892078,3.25,136.52,136.51,0.04854958]
[1765496892476,5.94459421,136.53,136.51,0.04854958]
[1765496892782,5.94459421,136.53,136.51,3.16854958]
[1765496893866,5.94459421,136.53,136.51,0.04854958]
[1765496895176,3.36,136.52,136.46,3.28]
[1765496895372,6.05459421,136.53,136.5,3.28]
[1765496895572,6.0019214,136.53,136.5,3.28]
[1765496896174,6.05610321,136.53,136.5,3.32749523]
[1765496897072,3.36,136.52,136.5,3.32749523]
[1765496898185,3.36,136.52,136.5,0.04749523]
[1765496899273,0.05418181,136.53,136.5,3.11749523]
[1765496900887,0.05418181,136.53,136.5,9.70959523]
[1765496901088,5.88610321,136.53,136.51,3.07]
[1765496901384,3.19,136.52,136.5,0.04749523]
[1765496901571,5.8319214,136.51,136.5,0.04749523]
[1765496904481,3.19,136.5,136.45,3.07]
[1765496904677,5.8319214,136.49,136.45,3.07]
[1765496905476,0.05313399,136.48,136.46,3.12059718]
[1765496906983,0.05313399,136.48,136.47,3.07]
[1765496911189,0.05313399,136.48,136.47,9.6636]
[1765496918792,11.05593911,136.54,136.49,3.07]
[1765496919000,13.69786051,136.54,136.49,3.07]
[1765496919890,0.04731796,136.53,136.51,3.07]
[1765496924393,0.04731796,136.53,136.51,9.6615]
[1765496924602,0.04731796,136.53,136.52,3.07]
[1765496928204,0.04731796,136.53,136.52,9.6612]
[1765496933608,0.04731796,136.53,136.52,3.07]
[1765496936612,0.04731796,136.53,136.52,9.6612]
[1765496940412,0.04731796,136.53,136.52,3.07]
[1765496940606,3.11731796,136.53,136.52,3.07]
[1765496940808,0.04731796,136.53,136.52,3.07]
[1765496942012,111.56852168,136.61,136.53,3.29]
[1765496942013,9.6578,136.6,136.53,3.29]
[1765496942317,10.93252527,136.6,136.53,3.29]
[1765496942914,0.04990066,136.58,136.56,3.29]
[1765496949218,0.04990066,136.58,136.57,3.29]
[1765496951422,0.04990066,136.58,136.57,9.8788]
[1765496955324,0.04990066,136.58,136.57,9.7988]
[1765496955620,3.42990066,136.58,136.55,9.85540791]
[1765496956622,3.42990066,136.58,136.56,3.21]
[1765496959621,3.42990066,136.58,136.55,3.13610791]
[1765496959822,4.13293554,136.57,136.55,0.05610791]
[1765496960021,3.26,136.56,136.55,0.05610791]
[1765496960729,3.26,136.56,136.53,3.08]
[1765496960927,0.04990066,136.58,136.53,3.08]
[1765496960928,7.39293554,136.55,136.53,3.08]
[1765496961531,7.39293554,136.57,136.53,3.08]
[1765496961747,7.39293554,136.57,136.54,3.12839597]
[1765496961923,7.44363114,136.57,136.54,3.12839597]
[1765496962531,7.44363114,136.57,136.55,3.08]
[1765496963429,3.26,136.56,136.54,0.04839597]
[1765496964328,7.39293554,136.55,136.54,0.04839597]
[1765496968635,4.13293554,136.55,136.54,3.12839597]
[1765496968830,7.39293554,136.55,136.54,0.04839597]
[1765496974231,6.5893,136.56,136.54,3.12839597]
[1765496974232,4.13293554,136.56,136.54,3.12839597]
[1765496974441,0.0506956,136.57,136.54,3.12839597]
[1765496974942,3.3106956,136.57,136.54,3.12839597]
[1765496975128,7.44363114,136.57,136.54,3.12839597]
[1765496975332,3.26,136.56,136.54,3.12839597]
[1765496976750,3.26,136.56,136.54,0.04839597]
[1765496977045,7.39293554,136.55,136.54,0.04839597]
[1765496977439,13.98273554,136.55,136.54,0.04839597]
[1765496981649,7.39293554,136.55,136.54,0.04839597]
[1765496983549,3.26,136.54,136.51,3.08]
[1765496984440,3.26,136.51,136.47,9.6732]
[1765496984651,5.90743182,136.49,136.48,0.04704706]
[1765496985446,2.69918902,136.5,136.48,3.12704706]
[1765496985650,0.0517572,136.5,136.48,3.12704706]
[1765496986954,0.0517572,136.5,136.49,9.6727]
[1765496990952,3.25,136.55,136.52,3.17]
[1765496991159,5.89743182,136.54,136.52,3.17]
[1765496991973,3.25,136.53,136.52,0.04997654]
[1765496996765,5.94695312,136.54,136.52,3.21997654]
[1765496996970,2.69695312,136.54,136.52,3.21997654]
[1765496997783,2.69695312,136.54,136.52,9.81117654]
[1765496997973,5.94695312,136.54,136.52,9.81117654]
[1765497000670,0.0495213,136.54,136.53,9.7607]
[1765497001484,1.27472527,136.6,136.57,3.17]
[1765497001485,4.52472527,136.6,136.57,3.17]
[1765497001684,1.27472527,136.6,136.57,3.17]
[1765497001981,1.27472527,136.6,136.58,3.17]
[1765497002183,4.52472527,136.6,136.58,3.17]
[1765497002580,4.57240232,136.6,136.58,3.21778419]
[1765497004173,4.57240232,136.6,136.58,0.04778419]
[1765497005177,4.57240232,136.6,136.58,3.21778419]
[1765497005984,0.04767705,136.6,136.58,3.21778419]
[1765497006986,0.04767705,136.6,136.59,9.7578]
[1765497017887,5.91510887,136.6,136.58,0.04778419]
[1765497018094,3.22,136.59,136.58,0.04778419]
[1765497023990,0.04767705,136.6,136.58,3.12778419]
[1765497024898,0.04767705,136.6,136.59,9.6678]
[1765497032497,2.69510887,136.6,136.59,9.6678]
[1765497032702,0.04767705,136.6,136.59,9.6678]
[1765497039999,1.27435184,136.64,136.63,3.08]
[1765497040203,2.64743182,136.66,136.63,3.08]
[1765497040606,6.01743182,136.66,136.63,3.08]
[1765497041000,2.70024422,136.66,136.65,3.08]
[1765497041504,2.70024422,136.66,136.65,9.6649]
[1765497042006,1.27397862,136.68,136.66,3.08]
[1765497043107,4.69379079,136.68,136.66,3.08]
[1765497043503,2.64743182,136.67,136.66,3.08]
[1765497044807,4.69379079,136.68,136.66,9.6644]
[1765497048320,4.69379079,136.68,136.66,3.08]
[1765497052519,1.32379079,136.68,136.66,3.08]
[1765497052817,0.04981217,136.68,136.67,3.35]
[1765497053523,0.04981217,136.68,136.67,9.934]
[1765497054227,3.19981217,136.68,136.66,3.40096378]
[1765497054823,0.04981217,136.68,136.67,3.35]
[1765497055223,3.19981217,136.68,136.66,9.98536378]
[1765497056426,0.04981217,136.68,136.67,3.35]
[1765497058327,0.04981217,136.68,136.67,9.934]
[1765497059920,0.04981217,136.68,136.66,3.40096378]
[1765497059921,3.19981217,136.68,136.66,3.40096378]
[1765497060226,3.19981217,136.68,136.66,0.05096378]
[1765497061430,7.27511686,136.67,136.66,0.05096378]
[1765497062625,0.04981217,136.68,136.66,3.40096378]
[1765497063530,3.19981217,136.68,136.66,3.40096378]
[1765497065129,0.04981217,136.68,136.67,3.35]
[1765497066738,0.04981217,136.68,136.67,9.934]
[1765497075551,6.5811,136.73,136.7,3.39]
[1765497075742,9.9411,136.73,136.7,3.39]
[1765497076640,9.98375955,136.73,136.7,3.43952979]
[1765497077445,0.04265955,136.73,136.7,10.02202979]
[1765497077841,0.04265955,136.73,136.71,3.39]
[1765497078145,3.40265955,136.73,136.71,3.39]
[1765497091756,0.04265955,136.73,136.72,3.06]
[1765497092260,0.04265955,136.73,136.72,9.6416]
[1765497092652,0.04265955,136.73,136.72,3.06]
[1765497097558,3.27,136.72,136.7,3.10952979]
[1765497098764,3.27,136.72,136.7,0.04952979]
[1765497098966,3.27,136.72,136.7,3.10952979]
[1765497099853,3.27,136.72,136.7,0.04952979]
[1765497100365,3.27,136.72,136.7,3.10952979]
[1765497102866,14.01887641,136.73,136.7,3.10952979]
[1765497104067,7.43777641,136.73,136.71,3.06]
[1765497105059,7.43777641,136.73,136.7,3.10952979]
[1765497105060,3.27,136.72,136.7,3.10952979]
[1765497106062,7.39511686,136.71,136.7,0.04952979]
[1765497106666,5.90952821,136.71,136.7,0.04952979]
[1765497107457,12.49152821,136.71,136.7,0.04952979]
[1765497109253,10.14983119,136.73,136.7,3.20952979]
[1765497109454,0.04265955,136.73,136.7,3.20952979]
[1765497109658,1.27316297,136.77,136.72,3.16]
[1765497109859,2.63952821,136.8,136.76,3.16]